bitfinex/quotes_ETHUSD_20241119
["timestamp","ask_amount","ask_price","bid_price","bid_amount"]
[1732031512355,3.2204,3105.2,3105.0,4.55]
[1732031512356,3.2205,3105.1,3105.0,4.55]
[1732031514307,3.2205,3105.1,3105.0,5.3462]
[1732031514619,3.2205,3105.1,3105.0,5.94560442]
[1732031515817,3.6486,3105.1,3105.0,1.82419123]
[1732031516020,3.6486,3105.1,3102.9,0.7962]
[1732031516021,3.22216,3103.5,3102.9,0.7962]
[1732031516204,3.22213,3103.6,3103.1,0.7962]
[1732031516404,3.22205,3103.7,3103.3,0.01]
[1732031516631,3.22193,3103.8,3103.5,0.7962]
[1732031517047,3.22169,3104.0,3103.5,0.7962]
[1732031517623,3.22193,3103.8,3103.5,0.7962]
[1732031518215,3.22193,3103.8,3103.6,0.55]
[1732031518653,3.22196,3103.7,3103.6,0.55]
[1732031518811,3.22196,3103.7,3103.6,0.74906969]
[1732031519016,3.22182,3103.9,3103.6,0.74906969]
[1732031519254,3.22188,3103.8,3103.6,0.74906969]
[1732031519759,3.22123,3104.4,3103.6,0.74906969]
[1732031519760,3.22177,3103.9,3103.6,0.74906969]
[1732031519924,3.2216,3104.1,3103.8,0.55]
[1732031520133,3.2216,3104.1,3103.8,0.75952697]
[1732031520325,3.22175,3103.9,3103.8,0.75952697]
[1732031521541,3.2216,3104.1,3103.8,0.75952697]
[1732031522426,3.22161,3104.1,3103.8,0.75952697]
[1732031522642,3.22166,3104.0,3103.8,0.75952697]
[1732031522824,3.22175,3103.9,3103.8,0.75952697]
[1732031523041,6.4434,3104.0,3103.8,0.75952697]
[1732031523261,3.22166,3104.0,3103.8,0.75952697]
[1732031523744,3.22175,3103.9,3103.8,0.75952697]
[1732031524058,3.22138,3104.3,3103.8,0.75952697]
[1732031524221,3.22161,3104.1,3103.8,0.75952697]
[1732031524616,3.2217,3104.0,3103.8,0.75952697]
[1732031524864,3.2217,3104.0,3103.8,1.39862967]
[1732031525045,3.2217,3104.0,3103.9,0.76948297]
[1732031525248,3.22151,3104.2,3104.0,0.55]
[1732031525563,3.22093,3104.7,3104.2,0.55]
[1732031525564,3.22097,3104.7,3104.2,0.55]
[1732031525780,3.22099,3104.7,3104.4,0.55]
[1732031525975,3.22099,3104.7,3104.4,0.73836]
[1732031525976,3.22113,3104.5,3104.4,0.73836]
[1732031526136,3.22113,3104.5,3104.4,0.55]
[1732031527381,3.22154,3104.2,3104.1,0.55]
[1732031528235,3.22154,3104.1,3103.8,0.6391027]
[1732031528454,3.22175,3103.9,3103.8,0.6391027]
[1732031529428,3.22175,3103.9,3103.8,1.1891027]
[1732031530387,3.22154,3104.1,3103.8,1.38387297]
[1732031530537,3.22154,3104.1,3103.9,0.55]
[1732031530742,3.22139,3104.3,3103.9,0.55]
[1732031531051,3.22157,3104.1,3103.9,0.7642473]
[1732031531253,3.22134,3104.3,3103.9,0.7642473]
[1732031531450,3.78496424,3105.0,3104.1,0.55]
[1732031531451,3.22101,3104.7,3104.1,0.55]
[1732031531691,3.22126,3104.4,3104.1,0.55]
[1732031531840,3.22123,3104.4,3104.3,0.55]
[1732031532044,6.44233,3104.5,3104.3,0.55]
[1732031532248,3.22113,3104.5,3104.3,0.55]
[1732031532444,3.22101,3104.7,3104.3,0.72333582]
[1732031532876,3.22073,3104.9,3104.3,0.72333582]
[1732031533187,3.22084,3104.8,3104.5,0.55]
[1732031533388,3.22064,3105.0,3104.5,3.77111]
[1732031533543,3.22064,3105.0,3104.4,0.7968]
[1732031533544,3.22071,3104.9,3104.7,0.55]
[1732031533740,3.22058,3105.1,3104.6,0.55]
[1732031533941,3.22058,3105.1,3104.8,0.55]
[1732031534146,3.22046,3105.2,3104.8,0.55]
[1732031534355,3.78664142,3105.8,3104.9,0.8314]
[1732031534590,3.78664142,3105.8,3105.0,0.55]
[1732031534591,0.2996372,3105.7,3105.0,0.55]
[1732031534884,3.35854142,3106.0,3105.0,0.55]
[1732031534885,3.21998,3105.6,3105.0,0.55]
[1732031535082,3.22019,3105.5,3105.0,0.55]
[1732031535304,3.21998,3105.6,3105.0,1.02779507]
[1732031535483,3.21981,3105.8,3105.4,0.7581]
[1732031535845,3.21978,3105.8,3105.5,0.55]
[1732031536002,3.21978,3105.8,3105.5,1.002834]
[1732031536502,3.21989,3105.7,3105.5,1.002834]
[1732031536788,3.21978,3105.8,3105.7,0.55]
[1732031542136,3.21988,3105.7,3105.6,0.6335494]
[1732031543188,3.906656,3105.7,3105.6,0.6335494]
[1732031544499,3.22064,3105.0,3104.8,0.7973]
[1732031544688,3.22064,3105.0,3104.9,0.55]
[1732031545691,3.22064,3105.0,3104.9,1.20308669]
[1732031548154,6.25949357,3106.0,3104.9,2.00748669]
[1732031548155,0.4281,3105.6,3104.9,2.00748669]
[1732031548321,3.22047,3105.2,3105.1,0.55]
[1732031548655,3.22061,3105.0,3104.9,1.20308669]
[1732031549306,3.22052,3105.1,3105.0,0.55]
[1732031549506,3.22052,3105.1,3105.0,1.3495]
[1732031549507,3.2205,3105.1,3105.0,1.3495]
[1732031549705,3.22035,3105.3,3105.0,1.3495]
[1732031549953,3.22036,3105.3,3105.0,1.54975867]
[1732031550605,6.44032,3105.5,3105.0,1.54975867]
[1732031550892,3.22014,3105.5,3105.0,1.54975867]
[1732031551051,3.22014,3105.5,3105.2,0.55]
[1732031551203,3.6477,3106.0,3105.2,0.55]
[1732031551204,3.2203,3105.3,3105.2,0.55]
[1732031551842,3.22019,3105.5,3105.1,0.55]
[1732031551843,6.44037,3105.5,3105.1,0.55]
[1732031552022,3.22018,3105.5,3105.1,0.75025867]
[1732031552207,6.44035,3105.5,3105.1,0.75025867]
[1732031552559,3.22017,3105.5,3105.1,0.75025867]
[1732031552913,3.22021,3105.4,3105.1,0.75025867]
[1732031553851,3.21982,3105.8,3105.1,0.75025867]
[1732031554021,3.21982,3105.8,3105.1,0.55]
[1732031554022,3.2204,3105.2,3105.1,0.55]
[1732031554225,3.2204,3105.2,3105.0,0.7995]
[1732031554226,3.2205,3105.1,3105.0,0.55]
[1732031555398,3.2202,3105.4,3105.0,0.55]
[1732031555574,3.22012,3105.5,3105.0,0.55]
[1732031555575,3.2201,3105.5,3105.1,0.7874]
[1732031555753,3.6476,3106.1,3105.2,0.55]
[1732031555956,3.22005,3105.6,3105.2,0.55]
[1732031556360,3.22019,3105.4,3105.2,0.55]
[1732031557072,3.2203,3105.3,3105.2,0.55]
[1732031557270,3.2203,3105.3,3105.0,0.55]
[1732031557271,3.22056,3105.1,3105.0,0.55]
[1732031557847,3.22045,3105.2,3105.0,0.55]
[1732031558291,3.2205,3105.1,3105.0,0.55]
[1732031558439,3.2203,3105.3,3105.0,0.55]
[1732031558643,0.4281,3105.6,3105.0,0.55]
[1732031558644,6.44028,3105.5,3105.0,0.55]
[1732031558839,3.22042,3105.2,3105.0,0.55]
[1732031559058,3.22032,3105.3,3105.0,0.55]
[1732031559483,3.2204,3105.2,3105.0,0.55]
[1732031559872,3.22036,3105.3,3105.0,0.55]
[1732031560076,3.22049,3105.2,3105.0,0.55]
[1732031560273,3.2205,3105.1,3105.0,0.55]
[1732031560650,3.22049,3105.2,3105.0,0.55]
[1732031560904,3.22024,3105.4,3105.0,0.55]
[1732031561079,3.64814,3105.6,3105.0,0.75238867]
[1732031561080,3.22014,3105.5,3105.0,0.75238867]
[1732031561281,3.2203,3105.3,3105.0,0.75238867]
[1732031561485,3.22025,3105.4,3105.0,0.55]
[1732031561782,3.22041,3105.2,3105.0,0.55]
[1732031561947,3.2203,3105.3,3105.0,0.55]
[1732031563280,6.44068,3105.3,3105.0,0.55]
[1732031563452,3.2203,3105.3,3105.0,0.55]
[1732031563859,3.2205,3105.1,3105.0,0.55]
[1732031564288,3.22061,3105.0,3104.9,0.65308669]
[1732031565859,3.22061,3105.0,3104.9,1.20308669]
[1732031566086,3.864721,3105.0,3104.9,1.20308669]
[1732031566292,3.864721,3105.0,3104.9,0.65308669]
[1732031566494,4.292821,3105.0,3104.9,0.65308669]
[1732031566696,3.22188,3103.8,3103.6,0.7548]
[1732031566906,3.85195482,3105.0,3103.1,0.7548]
[1732031566907,3.22155,3104.1,3103.1,0.7548]
[1732031567117,3.22218,3103.5,3103.1,0.7548]
[1732031567699,3.22218,3103.5,3103.4,0.64627842]
[1732031568510,3.22218,3103.5,3103.4,1.19627842]
[1732031570014,3.22206,3103.7,3103.5,0.55]
[1732031570170,3.22206,3103.6,3103.5,0.55]
[1732031575274,3.65026,3103.5,3103.4,0.64627842]
[1732031575477,3.66026,3103.5,3103.4,0.64627842]
[1732031575721,6.44598,3102.7,3101.9,0.7517]
[1732031576021,3.22345,3102.3,3101.6,3.98928]
[1732031576175,3.22373,3102.0,3101.6,1.37833018]
[1732031576380,3.22399,3101.8,3101.6,0.7652]
[1732031576620,3.22399,3101.8,3101.2,3.22447]
[1732031576621,3.22424,3101.6,3101.0,4.03449]
[1732031576829,0.4281,3102.1,3100.6,4.04493]
[1732031576830,3.22446,3101.3,3100.6,4.04493]
[1732031576987,3.22457,3101.2,3100.7,0.404493]
[1732031577197,3.22455,3101.3,3100.6,4.03491]
[1732031577396,3.22466,3101.1,3100.7,0.404491]
[1732031577607,3.22466,3101.1,3100.6,0.8098]
[1732031577798,3.22478,3101.0,3100.6,0.8098]
[1732031578436,3.22487,3100.9,3100.6,0.8098]
[1732031578585,3.22478,3101.0,3100.6,0.8098]
[1732031578791,3.22478,3101.0,3100.8,0.64063883]
[1732031579320,3.22487,3100.9,3100.8,0.64063883]
[1732031579501,3.22469,3101.1,3100.8,0.64063883]
[1732031579724,0.365228,3101.4,3100.8,0.64063883]
[1732031579948,3.22435,3101.4,3100.8,3.86550883]
[1732031580302,3.22456,3101.2,3100.8,0.64063883]
[1732031580839,3.22435,3101.4,3100.9,0.55]
[1732031581050,3.2241,3101.7,3101.1,0.55]
[1732031581230,3.22417,3101.6,3101.1,0.55]
[1732031581433,3.65208,3101.8,3101.1,3.77459]
[1732031581748,3.22398,3101.8,3101.3,0.55]
[1732031581949,3.22398,3101.8,3101.1,3.77465]
[1732031582102,3.22377,3102.0,3101.2,3.22455]
[1732031582303,3.22372,3102.0,3101.3,1.334]
[1732031582934,3.22385,3101.9,3101.3,4.55843]
[1732031583303,3.65177,3102.1,3101.3,4.55843]
[1732031583304,3.65177,3102.1,3101.5,0.55]
[1732031583558,3.22328,3102.5,3101.8,3.22386]
[1732031583848,3.65114,3102.7,3101.8,3.22386]
[1732031583849,3.2231,3102.6,3101.8,3.22386]
[1732031584151,3.22349,3102.3,3101.9,0.55]
[1732031584315,3.22349,3102.3,3101.6,0.55]
[1732031584503,3.22324,3102.5,3101.8,0.55]
[1732031584504,3.22326,3102.5,3101.8,0.55]
[1732031584701,3.22343,3102.3,3101.8,0.55]
[1732031585361,3.22326,3102.5,3101.8,0.97158423]
[1732031585649,3.22303,3102.7,3102.2,0.55]
[1732031585805,3.22303,3102.7,3102.2,0.73659]
[1732031586002,3.22303,3102.7,3102.2,0.55]
[1732031586452,0.4281,3103.2,3102.2,0.55]
[1732031586453,3.22263,3103.1,3102.2,0.55]
[1732031586620,3.65061,3103.2,3102.6,3.22309]
[1732031586805,3.22239,3103.3,3102.7,4.095279]
[1732031587130,0.4281,3103.6,3102.9,1.3647]
[1732031587332,3.22234,3103.4,3102.9,1.3647]
[1732031587544,3.22248,3103.2,3102.9,0.55]
[1732031587838,3.22248,3103.2,3102.6,0.55]
[1732031588026,3.22234,3103.4,3102.6,4.4818088]
[1732031588222,3.22234,3103.4,3102.6,7.7048388]
[1732031588517,3.22193,3103.8,3103.2,0.55]
[1732031588718,6.44388,3103.8,3103.2,0.55]
[1732031588934,3.22206,3103.6,3103.0,0.55]
[1732031589140,3.22206,3103.6,3103.2,0.55]
[1732031589321,3.22193,3103.8,3103.2,0.55]
[1732031589709,3.22154,3104.1,3103.5,0.55]
[1732031589911,3.22154,3104.1,3103.5,0.92722]
[1732031590132,3.22154,3104.1,3103.5,0.55]
[1732031590460,3.22117,3104.5,3103.7,0.55]
[1732031590632,3.22117,3104.5,3103.9,0.55]
[1732031590633,3.22115,3104.5,3103.9,0.55]
[1732031590966,0.4281,3104.7,3103.9,0.55]
[1732031590967,3.22111,3104.6,3103.9,0.55]
[1732031591247,3.22118,3104.5,3103.9,0.55]
[1732031591553,0.4281,3104.7,3104.0,0.55]
[1732031591554,0.364907,3104.6,3104.0,0.55]
[1732031591751,0.4281,3104.7,3104.1,3.22147]
[1732031591961,3.22092,3104.7,3104.1,0.55]
[1732031592159,3.6484,3105.3,3104.1,0.55]
[1732031592160,3.22072,3104.9,3104.2,3.22141]
[1732031592393,3.22054,3105.1,3104.3,3.77133]
[1732031592600,3.22054,3105.1,3104.6,0.8269]
[1732031592766,3.22054,3105.1,3104.7,0.55]
[1732031592970,3.22054,3105.1,3104.9,0.55]
[1732031593898,3.6484,3105.3,3104.9,0.55]
[1732031594211,3.22071,3104.9,3104.8,0.64902893]
[1732031594350,3.22071,3104.9,3104.8,1.19902893]
[1732031594698,3.22071,3104.9,3104.8,0.64902893]
[1732031595694,3.22063,3105.0,3104.8,0.64902893]
[1732031595862,3.542773,3104.9,3104.8,0.64902893]
[1732031596688,0.322063,3104.9,3104.8,1.19902893]
[1732031596888,3.22052,3105.1,3104.9,0.55]
[1732031596889,3.22062,3105.0,3104.9,0.55]
[1732031597089,3.22052,3105.1,3104.9,0.55]
[1732031597391,3.22061,3105.0,3104.9,0.55]
[1732031597554,3.585382,3105.1,3104.9,0.55]
[1732031597997,0.364862,3105.1,3104.9,0.55]
[1732031598195,3.22032,3105.3,3104.9,0.55]
[1732031598196,3.22031,3105.3,3104.9,0.55]
[1732031598992,3.22013,3105.5,3104.9,0.55]
[1732031599197,3.2202,3105.4,3104.9,0.55]
[1732031599396,3.22013,3105.5,3104.9,0.55]
[1732031599632,3.22021,3105.4,3104.9,3.7707]
[1732031599798,3.22021,3105.4,3104.9,0.55]
[1732031600606,3.22039,3105.3,3104.9,0.55]
[1732031602178,3.22042,3105.2,3104.9,0.55]
[1732031602383,3.22026,3105.4,3104.9,0.55]
[1732031602581,3.8965003,3105.4,3104.9,0.55]
[1732031602780,3.2205,3105.2,3104.9,0.55]
[1732031602999,3.22061,3105.0,3104.9,0.55]
[1732031603172,3.22087,3104.8,3104.5,0.55]
[1732031603372,3.6486,3105.2,3104.5,0.55]
[1732031603373,3.22064,3105.0,3104.5,0.55]
[1732031603576,0.4281,3105.7,3104.8,3.77078]
[1732031603770,3.22021,3105.4,3104.8,0.55]
[1732031603999,3.22051,3105.1,3104.8,0.55]
[1732031604170,0.4381,3106.0,3104.8,0.55]
[1732031604171,3.22031,3105.3,3104.8,0.55]
[1732031604722,3.22057,3105.1,3104.8,0.55]
[1732031604933,3.22031,3105.3,3104.8,3.77075]
[1732031605226,3.2199,3105.7,3105.1,1.3428]
[1732031605683,3.2199,3105.7,3105.3,0.55]
[1732031606058,3.9005383,3105.7,3105.6,0.55]
[1732031608383,3.22007,3105.6,3105.5,0.55]
[1732031609126,1.14016083,3105.6,3104.7,0.7697]
[1732031609431,3.22088,3104.8,3104.4,0.7697]
[1732031609724,3.22104,3104.6,3104.4,0.7697]
[1732031609920,6.44193,3104.7,3104.4,0.7697]
[1732031610130,3.22092,3104.7,3104.5,0.65901314]
[1732031610425,3.22085,3104.8,3104.5,0.65901314]
[1732031610630,3.22102,3104.6,3104.5,1.20901314]
[1732031611202,3.22102,3104.6,3104.5,0.65901314]
[1732031612382,3.22102,3104.6,3104.5,1.20901314]
[1732031612796,3.22102,3104.6,3103.8,3.2218]
[1732031612797,3.22176,3103.9,3103.8,0.7537]
[1732031612995,3.22154,3104.1,3103.4,0.7537]
[1732031612996,3.22213,3103.6,3103.4,0.7537]
[1732031613353,3.22187,3103.8,3103.4,0.7537]
[1732031613708,3.22193,3103.8,3103.4,0.7537]
[1732031613990,3.22169,3104.0,3103.4,3.9759]
[1732031614154,3.22169,3104.0,3103.4,4.695732]
[1732031614351,3.22169,3104.0,3103.5,0.55]
[1732031614964,3.22191,3103.8,3103.5,0.55]
[1732031616294,3.22196,3103.7,3103.5,0.55]
[1732031616499,3.22196,3103.7,3103.5,1.20019455]
[1732031616684,3.22191,3103.8,3103.5,1.20019455]
[1732031617904,3.22176,3103.9,3103.5,1.20019455]
[1732031619299,3.22186,3103.8,3103.5,1.20019455]
[1732031619511,3.22176,3103.9,3103.5,1.20019455]
[1732031620992,6.44361,3103.9,3103.5,1.20019455]
[1732031621196,3.22176,3103.9,3103.5,1.20019455]
[1732031622755,3.22156,3104.1,3103.5,1.20019455]
[1732031622959,3.22165,3104.0,3103.5,1.71782001]
[1732031623157,0.966277,3104.6,3103.5,1.20019455]
[1732031623390,0.01,3104.9,3103.5,1.20019455]
[1732031623391,3.22204,3103.7,3103.5,1.20019455]
[1732031623702,3.22179,3103.9,3103.5,1.20019455]
[1732031623993,6.44363,3103.9,3103.5,1.20019455]
[1732031624208,3.22187,3103.8,3103.5,1.20019455]
[1732031625958,3.22206,3103.6,3103.5,1.20019455]
[1732031626161,3.866453,3103.6,3103.5,0.65019455]
[1732031626585,4.10582852,3103.6,3102.8,0.8204]
[1732031626901,3.22279,3102.9,3102.8,0.8204]
[1732031627402,3.22279,3102.9,3102.8,0.63491245]
[1732031627611,3.867339,3102.9,3102.8,0.63491245]
[1732031628415,6.867339,3102.9,3102.8,0.63491245]
[1732031628767,7.40534001,3102.9,3102.8,0.63491245]
[1732031629075,3.22393,3101.8,3101.7,0.7746]
[1732031629297,3.22383,3101.9,3101.7,0.7746]
[1732031629886,6.44736,3102.1,3101.7,0.7746]
[1732031630084,3.22375,3102.0,3101.7,0.7746]
[1732031630390,3.22383,3101.9,3101.8,0.55]
[1732031631007,3.22393,3101.8,3101.7,0.63019309]
[1732031633489,3.22393,3101.8,3101.7,1.18019309]
[1732031634025,3.22383,3101.9,3101.8,0.55]
[1732031637484,0.4281,3102.4,3101.8,0.55]
[1732031637744,6.44697,3102.3,3102.0,1.305]
[1732031637913,3.22348,3102.3,3102.0,1.305]
[1732031638117,3.22354,3102.2,3102.0,1.305]
[1732031638436,3.22339,3102.4,3102.0,1.305]
[1732031638765,3.22342,3102.3,3102.2,0.55]
[1732031638918,3.22339,3102.4,3102.1,0.17454183]
[1732031638919,3.22353,3102.2,3102.1,0.55]
[1732031639461,3.65105,3102.8,3101.8,0.55]
[1732031639616,3.22383,3101.9,3101.7,0.63019309]
[1732031639821,3.22393,3101.8,3101.7,0.63019309]
[1732031640042,3.22435,3101.4,3101.3,0.7526]
[1732031640342,3.22411,3101.7,3101.3,0.7526]
[1732031640643,3.2243,3101.5,3101.3,0.7526]
[1732031640850,3.22435,3101.4,3101.3,1.40836093]
[1732031641208,3.22435,3101.4,3101.3,0.65576093]
[1732031641360,0.4281,3102.0,3101.3,0.65576093]
[1732031641517,3.22422,3101.6,3101.3,0.65576093]
[1732031641858,3.22427,3101.5,3101.3,0.65576093]
[1732031642239,3.22435,3101.4,3101.3,0.65576093]
[1732031642487,3.22435,3101.4,3101.3,1.20576093]
[1732031642835,3.22447,3101.3,3101.1,0.55]
[1732031643035,3.22447,3101.3,3101.2,1.21027825]
[1732031643240,3.22447,3101.3,3101.2,0.66027825]
[1732031644294,3.22447,3101.3,3100.4,0.50320191]
[1732031644295,3.22528,3100.6,3100.4,0.50320191]
[1732031644580,3.22522,3100.6,3100.3,0.8001]
[1732031644950,3.22528,3100.5,3100.3,0.8001]
[1732031645138,3.22539,3100.4,3100.3,0.8001]
[1732031645335,3.22568,3100.2,3099.7,0.7796]
[1732031645568,3.22601,3099.8,3099.7,0.7796]
[1732031645751,3.22601,3099.8,3099.2,3.22661]
[1732031645752,0.645184,3099.8,3099.2,0.8068]
[1732031645959,3.22651,3099.4,3099.2,0.8068]
[1732031646137,0.4281,3100.1,3098.8,0.7889]
[1732031646138,3.22593,3099.9,3098.8,0.7889]
[1732031646332,3.22573,3100.1,3099.4,3.22642]
[1732031646531,3.22583,3100.0,3099.3,0.64674532]
[1732031646761,3.22583,3100.0,3099.3,4.39957061]
[1732031646977,0.4281,3100.4,3099.3,1.17312061]
[1732031647147,0.4281,3100.4,3099.4,3.22636]
[1732031647346,0.4281,3100.4,3099.3,0.52637529]
[1732031647676,3.22591,3099.9,3099.8,0.65660502]
[1732031648034,3.22614,3099.7,3099.3,3.0]
[1732031648277,3.22614,3099.7,3099.6,0.63546787]
[1732031648581,3.22634,3099.5,3099.1,3.0]
[1732031648797,3.22614,3099.7,3099.0,0.787]
[1732031648798,3.22656,3099.3,3099.0,0.787]
[1732031648936,3.22622,3099.6,3098.4,0.8579632]
[1732031649135,0.4281,3099.7,3098.5,3.22735]
[1732031649391,0.4281,3099.7,3098.4,1.26652352]
[1732031649676,3.22645,3099.4,3099.1,0.66018515]
[1732031649882,3.22654,3099.3,3099.1,0.66018515]
[1732031650183,3.22633,3099.5,3099.1,1.47748515]
[1732031650387,0.4281,3100.1,3099.1,1.47748515]
[1732031650388,3.65387,3100.1,3099.4,0.55]
[1732031650592,3.2258,3100.0,3099.4,0.927647]
[1732031650739,3.2258,3100.0,3099.2,0.55]
[1732031650933,3.2258,3100.0,3099.2,3.77655]
[1732031651188,3.2258,3100.0,3099.4,0.55]
[1732031651675,0.4281,3100.1,3099.2,0.55]
[1732031651676,3.22619,3099.7,3099.2,0.55]
[1732031651835,3.22651,3099.4,3099.1,0.66018515]
[1732031652035,3.22682,3099.1,3098.4,7.12647081]
[1732031652336,3.22656,3099.3,3099.0,0.6607654]
[1732031652542,0.01,3100.1,3099.0,0.6607654]
[1732031652543,3.22621,3099.7,3099.0,0.6607654]
[1732031652770,3.2264,3099.5,3099.0,0.6607654]
[1732031652990,3.22621,3099.7,3099.0,3.8875654]
[1732031653343,3.22593,3099.9,3099.3,0.55]
[1732031653580,0.4281,3100.1,3099.3,0.55]
[1732031653742,3.22617,3099.7,3099.3,0.55]
[1732031653943,3.22623,3099.6,3099.3,0.55]
[1732031654381,3.22617,3099.7,3099.3,0.55]
[1732031655381,3.22594,3099.9,3099.3,3.77652]
[1732031655556,3.22551,3100.3,3099.6,0.55]
[1732031655885,3.2256,3100.2,3099.6,0.55]
[1732031656228,3.2257,3100.1,3099.6,1.18713571]
[1732031656880,3.2257,3100.1,3099.6,0.55]
[1732031657084,3.2257,3100.1,3099.4,3.7764]
[1732031657302,3.2257,3100.1,3099.4,6.91739947]
[1732031657592,3.2257,3100.1,3099.6,0.55]
[1732031657791,3.22551,3100.3,3099.6,0.55]
[1732031657957,3.22539,3100.4,3099.9,0.55]
[1732031658295,3.2253,3100.5,3099.9,4.231187]
[1732031658986,0.56604592,3101.6,3100.1,3.22562]
[1732031658987,3.22491,3100.9,3100.1,3.22562]
[1732031659139,3.22491,3100.9,3100.2,0.55]
[1732031659140,3.22504,3100.8,3100.2,0.55]
[1732031659342,3.22491,3100.9,3100.4,0.55]
[1732031660117,0.4481,3101.3,3099.9,0.55]
[1732031660244,0.4481,3101.3,3097.8,4.518395]
[1732031660245,0.4281,3100.4,3099.4,0.809]
[1732031660446,3.22622,3099.6,3099.5,0.63694225]
[1732031660695,3.22661,3099.3,3098.8,0.809]
[1732031660854,3.22684,3099.0,3098.5,0.809]
[1732031661062,6.45365,3099.1,3098.5,0.809]
[1732031661266,3.22681,3099.1,3098.8,0.63191223]
[1732031661867,3.22657,3099.3,3098.8,0.63191223]
[1732031662093,3.22639,3099.5,3098.8,4.24485145]
[1732031662278,6.45281,3099.5,3098.8,4.24485145]
[1732031662458,3.22639,3099.5,3098.9,3.22694]
[1732031662659,3.65426,3099.7,3099.0,3.77683]
[1732031662660,3.22616,3099.7,3099.0,3.77683]
[1732031662861,3.22616,3099.7,3099.2,0.55]
[1732031663767,3.22594,3099.9,3099.2,3.77661]
[1732031664100,3.46452519,3099.8,3099.2,3.77662]
[1732031664252,3.46457519,3099.7,3099.3,0.65587832]
[1732031664449,3.22612,3099.7,3099.4,0.55]
[1732031664675,3.22632,3099.5,3099.4,0.55]
[1732031664876,3.22643,3099.4,3099.3,0.65587832]
[1732031665075,3.81145186,3099.4,3099.3,0.65587832]
[1732031665312,3.81145186,3099.4,3098.8,0.7526]
[1732031665477,3.46507248,3099.3,3098.8,0.7526]
[1732031665654,3.22659,3099.3,3098.8,0.7526]
[1732031665857,3.22627,3099.6,3098.8,4.377604]
[1732031666057,3.46482384,3099.5,3098.9,3.22687]
[1732031666394,3.22612,3099.7,3099.2,0.55]
[1732031667397,3.46491974,3099.6,3099.2,0.55]
[1732031667693,3.2265,3099.4,3099.2,0.55]
[1732031668056,3.22653,3099.3,3099.2,0.55]
[1732031668257,3.22663,3099.2,3099.1,0.650525]
[1732031668993,3.2265,3099.4,3098.8,3.97964]
[1732031669191,0.23884638,3099.3,3098.9,3.22686]
[1732031669397,0.23884638,3099.2,3099.0,3.2268]
[1732031669605,3.22622,3099.6,3099.1,0.55]
[1732031669756,3.22646,3099.4,3099.1,0.55]
[1732031669959,3.22663,3099.2,3099.1,0.55]
[1732031670187,3.22663,3099.2,3098.9,0.55]
[1732031670367,3.22677,3099.1,3098.8,0.7526]
[1732031670694,3.22677,3099.1,3098.9,0.6434847]
[1732031670899,3.22684,3099.0,3098.9,0.6434847]
[1732031671327,3.9367319,3099.0,3098.9,0.6434847]
[1732031671469,3.22684,3099.0,3098.9,0.6434847]
[1732031671668,3.46609161,3099.0,3098.9,0.6434847]
[1732031672309,3.22684,3099.0,3098.9,0.6434847]
[1732031673604,3.2266,3099.3,3098.9,0.6434847]
[1732031673774,3.22664,3099.2,3099.0,0.55]
[1732031674667,3.22664,3099.2,3098.9,0.6434847]
[1732031674668,3.22664,3099.2,3098.9,0.86394325]
[1732031675124,3.22654,3099.3,3098.9,0.86394325]
[1732031675287,0.23987925,3099.2,3099.0,0.55]
[1732031675489,3.22647,3099.4,3099.0,0.55]
[1732031675919,3.22661,3099.3,3099.0,0.55]
[1732031676125,6.45274,3099.5,3099.0,0.55]
[1732031676323,0.23991794,3099.4,3099.0,1.09418833]
[1732031676487,3.2264,3099.5,3099.0,1.09418833]
[1732031676691,3.2264,3099.5,3099.0,0.55]
[1732031677341,3.22573,3100.1,3099.4,0.55]
[1732031677639,3.22614,3099.7,3099.4,0.55]
[1732031677799,3.22614,3099.7,3099.0,0.48918233]
[1732031677800,3.22622,3099.6,3099.0,0.55]
[1732031677996,3.22622,3099.6,3099.0,3.77683]
[1732031678229,3.22622,3099.6,3099.0,1.79967409]
[1732031678784,3.22603,3099.8,3099.0,1.79967409]
[1732031678892,0.23999882,3099.7,3099.3,0.55]
[1732031679090,3.22584,3100.0,3099.6,0.55]
[1732031679330,0.24005223,3099.9,3099.6,0.55]
[1732031679536,3.46612223,3099.8,3099.6,0.55]
[1732031679854,3.22611,3099.7,3099.6,0.55]
[1732031680260,3.22597,3099.9,3099.6,0.55]
[1732031680428,3.46608576,3099.8,3099.6,0.55]
[1732031680747,0.24008037,3099.7,3099.6,0.55]
[1732031680952,3.22597,3099.9,3099.6,0.55]
[1732031681163,3.46609668,3099.8,3099.6,0.55]
[1732031681366,3.4661617,3099.7,3099.6,0.55]
[1732031681515,3.22611,3099.7,3099.6,0.55]
[1732031681861,0.24005229,3099.7,3099.6,0.55]
[1732031682159,3.22603,3099.8,3099.6,0.55]
[1732031682347,3.22585,3100.0,3099.5,0.55]
[1732031682512,0.24006344,3099.9,3099.6,0.8024]
[1732031682720,6.45192,3099.9,3099.7,0.55]
[1732031682928,3.22601,3099.8,3099.7,0.55]
[1732031683130,3.22587,3100.0,3099.7,0.55]
[1732031683345,3.46600495,3099.9,3099.7,0.55]
[1732031683529,3.5725605,3099.9,3099.7,0.55]
[1732031683738,3.22628,3099.6,3099.4,0.65812678]
[1732031683936,3.22628,3099.6,3099.0,0.7709]